Cogmind - Beta 14 @@@ ROGUE MODE // 2024.10.31 @ 23:07:01 Player: corey Result: Destroyed by as-11177 with Assembled Rifle Performance ------------- Evolutions (0) 0 Regions Visited (3) 600 Robots Destroyed (5) 25 Value Destroyed (98) 98 Prototype IDs (1) 20 Alien Tech Used (0) 0 Bonus (360) 360 TOTAL SCORE: 1103 Bonus ------- Follower Combat Kills 60 Aligned with FarCom 300 Cogmind --------- Core Integrity 0/250 Matter 280/300 Energy 1624/1660 System Corruption 2% Temperature Cool (40) Movement Core (350) Ox6 Location -10/Exiles Parts ------- > --- POWER (1) -------- Light Nuclear Core > --- PROPULSION (2) --- (None) > --- UTILITY (2) ------ Medium Storage Unit Superbattery > --- WEAPON (2) ------- Makeshift Sword > --- INVENTORY (10) --- Compact Wheel Compact Wheel Large Matter Pod (150) Structural Scanner ECM Suite Light Armor Plating EM Pulse Gun Mining Laser Peak State ------------ > --- POWER ------------ Ion Engine > --- PROPULSION ------- Aluminum Leg Aluminum Leg > --- UTILITY ---------- Medium Storage Unit Superbattery > --- WEAPON ----------- EM Pulse Gun Makeshift Sword > --- INVENTORY -------- Light Nuclear Core Compact Wheel Compact Wheel Large Matter Pod Structural Scanner Light Armor Plating EM Pulse Gun Particle Gun Mining Laser [Rating: 20] Favorites ----------- Power Ion Engine Engine Ion Engine Power Core Light Nuclear Core Propulsion Aluminum Leg Leg Aluminum Leg Utility ECM Suite Device ECM Suite Storage Medium Storage Unit Weapon EM Pulse Gun Energy Gun EM Pulse Gun Ballistic Gun Light Assault Rifle Special Weapon Mining Laser Slashing Weapon Makeshift Sword Build | -11 -10 -10 -10 ------- Run | Yrd Mat Min Exi Slots Evolved . | . . . . Power . | . . . . Propulsion . | . . . . Utility . | . . . . Weapon . | . . . . Parts Attached 18 | 7 2 4 5 Power 2 | 1 . . 1 Engine 1 | 1 . . . Core 1 | . . . 1 Reactor . | . . . . Propulsion 4 | 2 . 1 1 Treads . | . . . . Leg 4 | 2 . 1 1 Wheel . | . . . . Hover . | . . . . Flight . | . . . . Utility 5 | 1 2 1 1 Device 2 | . 2 . . Storage 3 | 1 . 1 1 Processor . | . . . . Hackware . | . . . . Protection . | . . . . Artifact . | . . . . Weapon 7 | 3 . 2 2 Energy Gun 4 | 2 . . 2 Energy Cannon . | . . . . Ballistic Gun 1 | 1 . . . Ballistic Cannon . | . . . . Launcher . | . . . . Special Weapon 1 | . . 1 . Impact Weapon . | . . . . Slashing Weapon 1 | . . 1 . Piercing Weapon . | . . . . Special Melee Weapon . | . . . . Unidentified Prototypes 1 | . . . 1 Parts Lost 3 | . . . 3 Power 1 | . . . 1 Propulsion 2 | . . . 2 Utility . | . . . . Weapon . | . . . . Highest Loss Streak 3 | . . . 3 To Critical Strikes . | . . . . Average Slot Usage (%) 98 | . 99 100 97 Engine 13 | . 14 14 13 Leg 27 | . 28 28 27 Device 10 | . 13 14 6 Storage 17 | . 14 14 21 Energy Gun 13 | . 14 12 13 Ballistic Gun 3 | . 14 . . Slashing Weapon 10 | . . 13 14 Peak Build Rating 20 | 6 7 11 20 Average Rating 11 | 4 6 10 15 On Entrance 6 | . 6 7 11 Naked Turns . | . . . . Heaviest Build 23 | 14 15 21 23 Greatest Support 20 | 20 20 20 20 Greatest Overweight (x) 5 | . . 1 5 Average Overweight (x) . | . . . 1 Largest Inventory Capacity 10 | 8 8 10 10 Average Capacity 9 | 7 8 8 10 Most Carried 10 | 4 7 10 10 Average Carried 7 | 2 5 8 9 Final Capacity 10 | 8 8 10 10 Final Carried 9 | 4 7 9 8 Class Distribution -------------------- 100% | Mutant Dominant Class ---------------- Mutant | -10/Materials Mutant | -10/Mines Mutant | -10/Exiles Resources | -11 -10 -10 -10 ----------- Run | Yrd Mat Min Exi Matter Collected 381 | 254 . 87 40 Remotely . | . . . . Salvage Created 238 | . . 181 57 Parts 5 | . . 3 2 Haulers Intercepted . | . . . . Recyclers Shooed . | . . . . Parts Field Recycled . | . . . . Retrieved Matter . | . . . . Parts Self-Destructed . | . . . . Prevented . | . . . . Kills | -11 -10 -10 -10 ------- Run | Yrd Mat Min Exi Combat Hostiles Destroyed 4 | . . 2 2 Melee 4 | . . 2 2 Classes Destroyed 5 | . . 3 2 Worker 1 | . . 1 . Recycler 1 | . . 1 . Grunt 2 | . . 2 . Zionite 1 | . . . 1 Assembled 2 | . . . 2 Best Kill Streak 3 | . . 3 3 Combat Bots Only 2 | . . 2 2 Max Kills in Single Turn 1 | . . 1 1 Gunslinging . | . . . . Exploded . | . . . . Melee 1 | . . 1 1 Uniques/NPCs Destroyed . | . . . . Combat | -11 -10 -10 -10 -------- Run | Yrd Mat Min Exi Hostile Shots Fired 59 | . . 9 50 Missed 23 | . . 3 20 Damage Taken 702 | . . 76 626 Core 254 | . . 26 228 Absorbed by Shields . | . . . . Core Remaining (%) 100 | 100 . . . Volleys Fired 8 | . 1 5 2 Largest 2 | . 2 1 1 Hottest 100 | . 60 100 65 Shots Fired 10 | . 2 5 3 Gun 9 | . 2 4 3 Cannon . | . . . . Launcher . | . . . . Special 1 | . . 1 . Kinetic 1 | . 1 . . Thermal 3 | . . 1 2 Explosive . | . . . . Electromagnetic 6 | . 1 4 1 Robot Hit Streak 8 | . 2 6 8 Robot Miss Streak 1 | . . . 1 Penetration Max . | . . . . Secondary Targets . | . . . . Shots Hit Robots 20 | . 2 9 9 Core Hits 10 | . 1 6 3 Critical Kills . | . . . . Critical Parts Destroyed . | . . . . Critical Strikes . | . . . . Melee Attacks 16 | . . 6 10 Impact . | . . . . Slashing 16 | . . 6 10 Piercing . | . . . . Sneak Attacks 2 | . . 2 . Combat Hostiles 1 | . . 1 . Follow-up Attacks . | . . . . Damage Inflicted 626 | . 32 307 287 Guns 103 | . 32 53 18 Cannons . | . . . . Explosions . | . . . . Melee 523 | . . 254 269 Ramming . | . . . . Kinetic 10 | . 10 . . Thermal 18 | . . . 18 Explosive . | . . . . Electromagnetic 75 | . 22 53 . Impact . | . . . . Slashing 523 | . . 254 269 Piercing . | . . . . Highest Corruption 2 | . 2 2 2 Average Corruption 2 | . 2 2 2 Corruption Purged . | . . . . Corruption Blocked . | . . . . Effects 10 | . 1 1 8 Message Errors 4 | . . 1 3 Matter Fused 1 | . . . 1 Heat Flow Errors 1 | . 1 . . Energy Discharges 1 | . . . 1 Data Loss (major) 1 | . . . 1 Misfires 1 | . . . 1 Alerts 1 | . . . 1 Overload Shots . | . . . . Overflow Damage 2 | . . . 2 Projectiles . | . . . . Explosions . | . . . . Melee 2 | . . . 2 Knockbacks . | . . . . Impact . | . . . . Kinetic . | . . . . Secondary . | . . . . Self-Inflicted Damage . | . . . . Shots . | . . . . Rammed . | . . . . Targets Rammed . | . . . . Kicked . | . . . . Crushed . | . . . . Highest Temperature 257 | . 257 20 56 Average Temperature 73 | . 109 10 30 Received Heat Transfer 65 | . . 45 20 Siege Activations . | . . . . Robots Corrupted . | . . . . Combat Hostiles . | . . . . Parts Fried . | . . . . Impact Corruptions . | . . . . Robots Melted . | . . . . Combat Hostiles . | . . . . Parts Melted . | . . . . Heat Transferred 37 | . . . 37 Parts Sabotaged . | . . . . Parts Stolen . | . . . . Parts Stripped . | . . . . Power Chain Reactions . | . . . . Alert | -11 -10 -10 -10 ------- Run | Yrd Mat Min Exi Peak Influence 125 | . 32 125 . Initial 12 | . . 12 . Average 38 | . 15 66 . Maximum Alert Level . | . . . . Low Security (%) 100 | 100 100 100 . Level 1 . | . . . . Level 2 . | . . . . Level 3 . | . . . . Level 4 . | . . . . Level 5 . | . . . . High Security . | . . . . Max Security . | . . . . Squads Dispatched . | . . . . Investigation . | . . . . Extermination . | . . . . Reinforcement . | . . . . Assault . | . . . . Garrison . | . . . . Intercept . | . . . . Searches Triggered . | . . . . Construction Impeded . | . . . . Haulers Reinforced . | . . . . Active Scanning Responses . | . . . . Cargo Convoy Interrupts . | . . . . Stealth | -11 -10 -10 -10 --------- Run | Yrd Mat Min Exi Distress Signals . | . . . . Communications Jammed . | . . . . Distress Signals . | . . . . Times Spotted 23 | . 1 9 13 Peak Tracking Total 16 | . 1 2 16 Tactical Retreats 5 | . . 4 1 Traps | -11 -10 -10 -10 ------- Run | Yrd Mat Min Exi Traps Triggered 1 | . 1 . . Indirectly . | . . . . Trap Hack Attempts . | . . . . Triggered . | . . . . Disarmed . | . . . . Reprogrammed . | . . . . Reused . | . . . . Traps Extracted . | . . . . Installed . | . . . . Triggered . | . . . . Machines | -11 -10 -10 -10 ---------- Run | Yrd Mat Min Exi Machines Disabled 2 | . . . 2 Max in Single Turn 1 | . . . 1 Machines Repaired . | . . . . Machines Dismantled . | . . . . Machines Sabotaged . | . . . . Overloaded Fab Kills . | . . . . Hacking | -11 -10 -10 -10 --------- Run | Yrd Mat Min Exi Machines Accessed 5 | . 4 . 1 Terminals 3 | . 3 . . Fabricators . | . . . . Repair Stations . | . . . . Recycling Units 1 | . 1 . . Scanalyzers . | . . . . Garrison Access . | . . . . Total Hacks 7 | . 6 . 1 Successful 6 | . 5 . 1 Failed 1 | . 1 . . Catastrophic . | . . . . Database Lockouts . | . . . . Manual 2 | . 1 . 1 Terminals 5 | . 5 . . Fabricators . | . . . . Repair Stations . | . . . . Recycling Units 1 | . 1 . . Scanalyzers . | . . . . Garrison Access . | . . . . Terminal Hacks 5 | . 4 . 1 Record 1 | . . . 1 Branch Access Points 1 | . 1 . . Terminal Index 1 | . 1 . . Alert Level 1 | . 1 . . Dispatch Records 1 | . 1 . . Fabricator Hacks . | . . . . Repair Station Hacks . | . . . . Recycling Unit Hacks 1 | . 1 . . Report Inventory 1 | . 1 . . Scanalyzer . | . . . . Garrison Access Hacks . | . . . . Unauthorized Hacks . | . . . . Terminals . | . . . . Fabricators . | . . . . Repair Stations . | . . . . Recycling Units . | . . . . Scanalyzers . | . . . . Garrison Access . | . . . . Data Cores Recovered . | . . . . Used . | . . . . Hacking Detections . | . . . . Full Trace Events . | . . . . Feedback Events . | . . . . Feedback Blocked . | . . . . Robot Schematics Acquired . | . . . . Robots Built . | . . . . Authchips . | . . . . Time . | . . . . Total Robot Build Rating . | . . . . Part Schematics Acquired . | . . . . Parts Built . | . . . . Authchips . | . . . . Time . | . . . . Total Part Build Rating . | . . . . Parts Repaired . | . . . . Time . | . . . . Parts Recycled . | . . . . Recycled Matter . | . . . . Retrieved Matter . | . . . . Retrieved Components . | . . . . Parts Scanalyzed . | . . . . Part Schematics Acquired . | . . . . Parts Damaged . | . . . . Bothacking | -11 -10 -10 -10 ------------ Run | Yrd Mat Min Exi Used RIF Installer . | . . . . Robots Hacked . | . . . . Non-combat . | . . . . Combat . | . . . . Robot Hacks Applied . | . . . . Relay Couplers Released . | . . . . Fabnet Peak Effective % . | . . . . Robots Rewired . | . . . . Allies Hacked . | . . . . Hacks Repelled . | . . . . Allies | -11 -10 -10 -10 -------- Run | Yrd Mat Min Exi Total Allies 3 | . . 3 . Largest Group 3 | . . 3 . Highest-Rated Group 40 | . . 40 . Highest-Rated Ally 16 | . . 16 . Total Orders 2 | . . 2 . ROAM 2 | . . 2 . Ally Attacks 8 | . . 8 . Total Damage 104 | . . 104 . Kills 2 | . . 2 . Allies Corrupted . | . . . . Allies Melted . | . . . . Intel | -11 -10 -10 -10 ------- Run | Yrd Mat Min Exi Robot Analysis Total . | . . . . Derelict Logs Recovered . | . . . . Drone Launches . | . . . . Drone Recoveries . | . . . . Exploration | -11 -10 -10 -10 ------------- Run | Yrd Mat Min Exi Turns Passed 1258 | 59 275 309 615 Spaces Moved 725 | 39 216 164 306 Core 3 | 2 . . 1 Treads . | . . . . Legs 722 | 37 216 164 305 Wheels . | . . . . Hover . | . . . . Flight . | . . . . Fastest Speed 50 | 50 120 120 120 Average Speed 150 | 116 120 124 190 Slowest Speed 300 | 120 120 190 300 Overloaded Moves . | . . . . Propulsion Burnouts . | . . . . Robots Hopped . | . . . . Cave-ins Triggered . | . . . . Exploration Rate (%) 37 | 3 41 31 76 Regions Visited 3 Branch Regions 2 Pre-discovered Areas 1 | . . 1 . Known Exits Taken 1 | . 1 . . Unknown Exits Taken 2 | 1 . 1 . Scrap Searched . | . . . . Spaces Dug . | . . . . Terrain Destroyed . | . . . . Melee . | . . . . Projectile . | . . . . AOE . | . . . . Terrain Rammed . | . . . . Walls Destroyed . | . . . . Machines Disabled . | . . . . Actions | -11 -10 -10 -10 --------- Run | Yrd Mat Min Exi Total 863 | 49 229 258 327 Wait 77 | . 8 68 1 Move 722 | 38 215 163 306 Hop . | . . . . Pick Up 13 | 4 2 6 1 Fast Attach 10 | 6 2 . 2 Attach 2 | . . . 2 Detach 1 | . 1 . . Swap 6 | 1 . 4 1 Drop 7 | . . 6 1 Fire 8 | . 1 5 2 Melee 16 | . . 6 10 Ram . | . . . . Kick . | . . . . Crush . | . . . . Escape Stasis . | . . . . Rewire 1 | . . . 1 Trap . | . . . . Miscellaneous . | . . . . Route ------- -11/Scrapyard -10/Materials -10/Mines -10/Exiles (discovered 1 exit: [*Min]) History --------- Turn | Location | Event 12 | -11/Scrapyard | Discovered new exit (range 15) 60 | -11/Scrapyard | Entered Materials 92 | -10/Materials | Identified exit to Mines 314 | -10/Materials | Build established: Mutant 335 | -10/Materials | Entered Mines 350 | -10/Mines | A weapon hastily lodged in a ceiling crevice suddenly fell to the ground 421 | -10/Mines | Assisted by bots powering up and referring to "LRC-V3" 539 | -10/Mines | Learned location of Storage (-7) 619 | -10/Mines | Discovered new exit (range 2) 644 | -10/Mines | Entered Exiles 676 | -10/Exiles | Discovered new exit (range 15) 701 | -10/Exiles | Met 8R-AWN 729 | -10/Exiles | Met EX-HEX 822 | -10/Exiles | Met EX-BIN 852 | -10/Exiles | Aligned with FarCom system 854 | -10/Exiles | Given EX-Vault access code 907 | -10/Exiles | Opened EX-Vault 923 | -10/Exiles | Found Prototype Storage 923 | -10/Exiles | Identified Superbattery 988 | -10/Exiles | Warned to stay clear of 0b10 Research branches 1043 | -10/Exiles | Met EX-DEC 1105 | -10/Exiles | Visited The Gauntlet 1212 | -10/Exiles | Attacked by the Exiles 1247 | -10/Exiles | Core integrity fell below 50% 1253 | -10/Exiles | Core integrity fell below 20% 1259 | -10/Exiles | Destroyed by as-11177 with Assembled Rifle Last Messages --------------- 01212_ System corrupted: FCS attempts to trigger EM Pulse Gun. 01212_ System corrupted: EM Pulse Gun misfires. 01212_ EXILES: Hostile robot within lab perimeter. Defensive protocols time, folks! 01212_ Machine disabled. 01216_ Aluminum Leg severed. 01222_ EM Pulse Gun severed. 01222_ Acquired Aluminum Leg. 01230_ Aluminum Leg destroyed. 01232_ Ion Engine destroyed. 01236_ ZX-C33 destroyed. 01238_ Acquired 24 matter. 01241_ PACW W%H/K#P U%T8#1/X= NTKH 01241_ Destroyed Asb. Hover Unit. 01243_ as-01238 destroyed. 01245_ Acquired 16 matter. 01248_ Aluminum Leg destroyed. 01256_ Machine disabled. 01258_ Particle Gun severed. 01258_ as-88633 destroyed. Map ----- +----------------------------------------------------+ | ??????????????????????????????????#" | | ??????????????????????????????????#"""" | | ??????????????????????????????????#"" | | ??????????????????????????????????#" " | | ??????????????????????????????????#""" | | ??????????????????????????????????## | | ???????????????????????????????????#"" "" | | ???????????????????????????????????##""" | | ????????????????????????????????????##"""" # | | ?????????????????????????????????????### # | | ???????????????????????????????????????##### ## | | ???????????????????????????????????????????## #? | | ????????????????????????????????????????????# #? | | ????????????????????????????????????????????# #? | | ????????????????????????????????????????????# #? | | ?????????????#####?????????????????###??????# #? | | ???????????#"""""""#????""""""???#"""""?????# #? | | ????????????"" ""????"""""""#???"""""""???# #? | | ???????????#" "#??"""""" "#??#" """"#??# #? | | ????????????"" ""#""#""" """#???"" """???# #? | | ????????????"" ""#""#"" ""????"" ""???# #? | | ??????########"""###""###"""########"""###### ## | | ??????#"""" "" """"""" """"""" """""" "" | | ??????#" """""" """"""" c | | ??????#""" = *% a | | ??????#"""" [@a az z | | ??????#"" % a a | | ??????#""" "" | | ??????#"" """ """""" """"" " """" | | ??????########"""########"""###""###"""########""" | | ????????????"" ""????"" ""#""#"" ""?????? | | ????????????""" """????""" ""#""#""" ""?????? " | | ???????????#" """ "#??#" """"""""#" " "#?????""" | | ????????????"""""""????"""""""????"""""""?????? "" | | ????????????"""""""????""""""?????"""""""#?????""" | | ????????????????????????????????????##?#????????#? | | ?????????????????????????????????????????????????? | | ?????????????????????????????????????????????????? | | ?????????????????????????????????????????????????? | | ?????????????????????????????????????????????????? | | | | | | | | | | | | | | | | | | | | | +----------------------------------------------------+ Best States ------------- Heat Dissipation 25 Energy Generation 10 Energy Capacity 1750 Matter Stores 300 Matter Capacity 300 Sight Range 16 Terrain Scan Density 10 ECM Strength 1 Evasion (%) 55 Item Schematics ----------------- None Robot Schematics ------------------ None Fabricated ------------ Nothing Alien Tech Used ----------------- None Achievements -------------- None Challenges ------------ None Game ------ Seed ImpulseAlertMaul Manual? 0 Play Time 00:18:00 Cumulative 29.2 hours Start 2024.10.31 @ 22:46:51 End 2024.10.31 @ 23:07:01 Sessions 2 Manual Loads 0 Difficulty Rogue Special Mode None Game No. 37 Rogue 37 Adventurer 0 Explorer 0 Win Type - Total 0 Types 0/0/0/0/0/0/0/0/0 Lore% 11 Gallery% 25 Achievement% 21 Wizard Run 0 Options --------- Layout 1 ASCII 0 Keyboard 0 Movement Numpad Keybinds 0 Fullscreen 1 Font 32/SmallcapsGlow Map View 77x35 Zoom Use 7% Tactical HUD 1 Map Filters NONE Filters NONE Steam 1 RUN: e239179d-74af-47c1-9ccd-d83ccffa49b5